[Event "Late-Titled-Tuesday-Blitz-May-07-2024"]
[Site "Chess.com"]
[Date "2024.05.07"]
[Round "3"]
[White "Licancabur"]
[Black "bipe137"]
[Result "1-0"]
[WhiteElo "2497"]
[BlackElo "2670"]
[TimeControl "180+1"]
[EndTime "14:30:33 PDT"]
[Termination "Licancabur won by checkmate"]

1. d4 {[%clk 0:03:00.9]} 1... d5 {[%clk 0:02:59.6]} 2. Bg5 {[%clk 0:02:58.9]}
2... c6 {[%clk 0:02:59.1]} 3. Nf3 {[%clk 0:02:54.9]} 3... Qb6 {[%clk 0:02:59]}
4. Qc1 {[%clk 0:02:52.2]} 4... Bf5 {[%clk 0:02:54.6]} 5. Nbd2 {[%clk 0:02:43.3]}
5... Nd7 {[%clk 0:02:51.3]} 6. e3 {[%clk 0:02:36.5]} 6... h6 {[%clk 0:02:48.1]}
7. Bf4 {[%clk 0:02:34.4]} 7... Ngf6 {[%clk 0:02:47.3]} 8. Be2 {[%clk 0:02:28.7]}
8... Nh5 {[%clk 0:02:43.6]} 9. O-O {[%clk 0:02:24.5]} 9... Nxf4 {[%clk 0:02:43]}
10. exf4 {[%clk 0:02:24.5]} 10... e6 {[%clk 0:02:41.2]} 11. c3 {[%clk
0:02:23.1]} 11... Bd6 {[%clk 0:02:36.4]} 12. Ne5 {[%clk 0:02:22.8]} 12... Qd8
{[%clk 0:02:28.6]} 13. Ndf3 {[%clk 0:02:15.9]} 13... O-O {[%clk 0:02:25.9]} 14.
Qe3 {[%clk 0:02:11.4]} 14... f6 {[%clk 0:02:23]} 15. Nxd7 {[%clk 0:02:07.7]}
15... Qxd7 {[%clk 0:02:23.9]} 16. g3 {[%clk 0:02:07.8]} 16... Rae8 {[%clk
0:02:23.1]} 17. Bd3 {[%clk 0:02:00.8]} 17... Bh3 {[%clk 0:02:17.6]} 18. Rfe1
{[%clk 0:02:00.5]} 18... Qf7 {[%clk 0:02:12.8]} 19. Nh4 {[%clk 0:01:57]} 19...
Qd7 {[%clk 0:01:53.2]} 20. Ng6 {[%clk 0:01:45.9]} 20... Rf7 {[%clk 0:01:50]} 21.
Qe2 {[%clk 0:01:27.3]} 21... f5 {[%clk 0:01:14.6]} 22. f3 {[%clk 0:01:02.5]}
22... c5 {[%clk 0:01:06.1]} 23. Ne5 {[%clk 0:01:01.6]} 23... Bxe5 {[%clk
0:01:05.1]} 24. Qxe5 {[%clk 0:01:00.2]} 24... c4 {[%clk 0:00:54.9]} 25. Bc2
{[%clk 0:00:58.6]} 25... g5 {[%clk 0:00:55.3]} 26. Re2 {[%clk 0:00:42.2]} 26...
Qc7 {[%clk 0:00:44.3]} 27. Qxc7 {[%clk 0:00:34.7]} 27... Rxc7 {[%clk 0:00:44]}
28. Rae1 {[%clk 0:00:34.4]} 28... Kf7 {[%clk 0:00:36.8]} 29. fxg5 {[%clk
0:00:26.9]} 29... hxg5 {[%clk 0:00:36.5]} 30. Kf2 {[%clk 0:00:27.6]} 30... Kf6
{[%clk 0:00:29.1]} 31. Ba4 {[%clk 0:00:25.6]} 31... Ree7 {[%clk 0:00:28.4]} 32.
b4 {[%clk 0:00:21.3]} 32... cxb3 {[%clk 0:00:27.5]} 33. Bxb3 {[%clk 0:00:21.6]}
33... Rxc3 {[%clk 0:00:27.2]} 34. Bxd5 {[%clk 0:00:21.7]} 34... f4 {[%clk
0:00:21.6]} 35. g4 {[%clk 0:00:20.5]} 35... Re3 {[%clk 0:00:20.8]} 36. Be4
{[%clk 0:00:15.7]} 36... Ra3 {[%clk 0:00:14]} 37. Rb2 {[%clk 0:00:14.2]} 37...
b6 {[%clk 0:00:13.5]} 38. Rc1 {[%clk 0:00:13.6]} 38... Rd7 {[%clk 0:00:13.3]}
39. Rc4 {[%clk 0:00:12.8]} 39... b5 {[%clk 0:00:11.1]} 40. Rcb4 {[%clk
0:00:12.2]} 40... a6 {[%clk 0:00:09.5]} 41. Rd2 {[%clk 0:00:12.4]} 41... Rc3
{[%clk 0:00:08.3]} 42. Rb3 {[%clk 0:00:11.4]} 42... Rc1 {[%clk 0:00:08.1]} 43.
Rb1 {[%clk 0:00:08.8]} 43... Rc4 {[%clk 0:00:08.2]} 44. Rbd1 {[%clk 0:00:07.7]}
44... Ra4 {[%clk 0:00:07.4]} 45. d5 {[%clk 0:00:06.6]} 45... exd5 {[%clk
0:00:07.3]} 46. Bxd5 {[%clk 0:00:06.8]} 46... Re7 {[%clk 0:00:06.9]} 47. Bb3
{[%clk 0:00:07]} 47... Rb4 {[%clk 0:00:04.4]} 48. Rd6+ {[%clk 0:00:06.9]} 48...
Kg7 {[%clk 0:00:05]} 49. Rd7 {[%clk 0:00:07.2]} 49... Kf6 {[%clk 0:00:03.7]} 50.
R1d6+ {[%clk 0:00:05.1]} 50... Ke5 {[%clk 0:00:04.1]} 51. Rd5+ {[%clk
0:00:05.1]} 51... Kf6 {[%clk 0:00:03.9]} 52. Rf5+ {[%clk 0:00:05.7]} 52... Kg6
{[%clk 0:00:03]} 53. Rxe7 {[%clk 0:00:06.4]} 53... Rd4 {[%clk 0:00:03.3]} 54.
Re6+ {[%clk 0:00:06.5]} 54... Kg7 {[%clk 0:00:03.3]} 55. Rxg5+ {[%clk 0:00:07]}
55... Kh7 {[%clk 0:00:03.3]} 56. Re7+ {[%clk 0:00:06.5]} 56... Kh6 {[%clk
0:00:03.4]} 57. Rh5+ {[%clk 0:00:06.5]} 57... Kg6 {[%clk 0:00:04.1]} 58. Rxh3
{[%clk 0:00:07]} 58... Rd2+ {[%clk 0:00:04.8]} 59. Re2 {[%clk 0:00:07.5]} 59...
Rd4 {[%clk 0:00:04.9]} 60. Rh5 {[%clk 0:00:08]} 60... a5 {[%clk 0:00:05.2]} 61.
Rxb5 {[%clk 0:00:07.8]} 61... a4 {[%clk 0:00:05.9]} 62. Be6 {[%clk 0:00:07.1]}
62... a3 {[%clk 0:00:04]} 63. Ra5 {[%clk 0:00:07.2]} 63... Rd3 {[%clk
0:00:03.2]} 64. Bb3 {[%clk 0:00:07.5]} 64... Rc3 {[%clk 0:00:03.2]} 65. h4
{[%clk 0:00:08]} 65... Rc7 {[%clk 0:00:01.5]} 66. h5+ {[%clk 0:00:08.3]} 66...
Kh6 {[%clk 0:00:01.4]} 67. Rxa3 {[%clk 0:00:08]} 67... Kg5 {[%clk 0:00:01.6]}
68. Kg2 {[%clk 0:00:07.8]} 68... Kh4 {[%clk 0:00:02.1]} 69. Ra6 {[%clk
0:00:07.4]} 69... Rc3 {[%clk 0:00:02.3]} 70. h6 {[%clk 0:00:07.2]} 70... Rc7
{[%clk 0:00:02.6]} 71. Rg6 {[%clk 0:00:04.9]} 71... Rf7 {[%clk 0:00:01.3]} 72.
Rg7 {[%clk 0:00:05]} 72... Rf6 {[%clk 0:00:01.4]} 73. h7 {[%clk 0:00:05]} 73...
Rh6 {[%clk 0:00:01.9]} 74. g5 {[%clk 0:00:03.4]} 74... Rh5 {[%clk 0:00:01.9]}
75. g6 {[%clk 0:00:04]} 75... Rh6 {[%clk 0:00:02.3]} 76. Kf2 {[%clk 0:00:04.5]}
76... Kg5 {[%clk 0:00:03]} 77. Ke1 {[%clk 0:00:05.1]} 77... Rh1+ {[%clk
0:00:03.6]} 78. Kd2 {[%clk 0:00:05.3]} 78... Rb1 {[%clk 0:00:04.5]} 79. Rg2+
{[%clk 0:00:05.2]} 79... Kf6 {[%clk 0:00:04.5]} 80. h8=Q {[%clk 0:00:05.4]}
80... Rb2+ {[%clk 0:00:05.4]} 81. Kd3 {[%clk 0:00:05.4]} 81... Rxg2 {[%clk
0:00:06.3]} 82. Rh7+ {[%clk 0:00:05.8]} 82... Kg5 {[%clk 0:00:07.2]} 83. Rh5+
{[%clk 0:00:06.3]} 83... Kxg6 {[%clk 0:00:07]} 84. Qh6# {[%clk 0:00:05.8]} 1-0

[Event "Late-Titled-Tuesday-Blitz-May-07-2024"]
[Site "Chess.com"]
[Date "2024.05.07"]
[Round "3"]
[White "ArtemDyachuk"]
[Black "ccccvhhhj"]
[Result "1-0"]
[WhiteElo "2701"]
[BlackElo "2489"]
[TimeControl "180+1"]
[EndTime "14:30:43 PDT"]
[Termination "ArtemDyachuk won on time"]

1. e4 {[%clk 0:03:00.9]} 1... e6 {[%clk 0:03:00]} 2. d4 {[%clk 0:02:58.7]} 2...
d5 {[%clk 0:03:00.9]} 3. Nc3 {[%clk 0:02:56.8]} 3... Bb4 {[%clk 0:03:00.6]} 4.
e5 {[%clk 0:02:56.8]} 4... c5 {[%clk 0:03:01]} 5. a3 {[%clk 0:02:56.5]} 5...
Bxc3+ {[%clk 0:03:01.7]} 6. bxc3 {[%clk 0:02:56.9]} 6... Ne7 {[%clk 0:03:02.6]}
7. Qg4 {[%clk 0:02:55.5]} 7... Kf8 {[%clk 0:03:03.2]} 8. Nf3 {[%clk 0:02:48.8]}
8... Qa5 {[%clk 0:03:03.9]} 9. Bd2 {[%clk 0:02:48]} 9... Qa4 {[%clk 0:03:04.7]}
10. Rc1 {[%clk 0:02:32.8]} 10... Nbc6 {[%clk 0:03:05]} 11. Bd3 {[%clk
0:02:29.9]} 11... b6 {[%clk 0:03:05.5]} 12. O-O {[%clk 0:02:28.6]} 12... Ba6
{[%clk 0:03:06.1]} 13. Bxa6 {[%clk 0:02:23.4]} 13... Qxa6 {[%clk 0:03:07]} 14.
dxc5 {[%clk 0:02:14.1]} 14... bxc5 {[%clk 0:02:58.6]} 15. Be3 {[%clk 0:02:14.5]}
15... Qa5 {[%clk 0:02:55.4]} 16. Rb1 {[%clk 0:02:10]} 16... h6 {[%clk
0:02:42.9]} 17. Rb7 {[%clk 0:02:05.7]} 17... Kg8 {[%clk 0:02:35.1]} 18. a4
{[%clk 0:02:00.6]} 18... a6 {[%clk 0:02:30.3]} 19. Rfb1 {[%clk 0:01:48.8]} 19...
Kh7 {[%clk 0:02:28.6]} 20. Qh5 {[%clk 0:01:46.1]} 20... Rhf8 {[%clk 0:02:20]}
21. h4 {[%clk 0:01:10.3]} 21... Nf5 {[%clk 0:01:39.9]} 22. Bxh6 {[%clk
0:00:52.1]} 22... Nxh6 {[%clk 0:01:24]} 23. Ng5+ {[%clk 0:00:43.3]} 23... Kg8
{[%clk 0:01:24.3]} 24. Rxf7 {[%clk 0:00:20.1]} 24... Rxf7 {[%clk 0:01:18.4]} 25.
Qg6 {[%clk 0:00:19.7]} 25... Nd8 {[%clk 0:00:42.2]} 26. Qh7+ {[%clk 0:00:13.8]}
26... Kf8 {[%clk 0:00:42.9]} 27. Qh8+ {[%clk 0:00:12.8]} 27... Ke7 {[%clk
0:00:41.2]} 28. Nxf7 {[%clk 0:00:05]} 28... Kxf7 {[%clk 0:00:34.4]} 29. g4
{[%clk 0:00:02.9]} 29... Qxa4 {[%clk 0:00:28.8]} 30. g5 {[%clk 0:00:02.5]} 30...
Qg4+ {[%clk 0:00:29.5]} 31. Kf1 {[%clk 0:00:02.9]} 31... Qc4+ {[%clk 0:00:24.4]}
32. Kg1 {[%clk 0:00:02.9]} 32... Nf5 {[%clk 0:00:20.8]} 33. Qh5+ {[%clk
0:00:02.5]} 33... Ke7 {[%clk 0:00:16.1]} 34. Qg6 {[%clk 0:00:02.6]} 34... Qg4+
{[%clk 0:00:15.6]} 35. Kf1 {[%clk 0:00:02.2]} 35... Rc8 {[%clk 0:00:09.1]} 36.
Rb6 {[%clk 0:00:01.9]} 36... Nxh4 {[%clk 0:00:07]} 37. Qd3 {[%clk 0:00:01.3]}
37... Qg2+ {[%clk 0:00:05.1]} 38. Ke1 {[%clk 0:00:01.7]} 38... Qg1+ {[%clk
0:00:06]} 39. Ke2 {[%clk 0:00:02.1]} 39... Qg4+ {[%clk 0:00:06.6]} 40. Kf1
{[%clk 0:00:02.3]} 40... Nf3 {[%clk 0:00:04.9]} 41. Qxa6 {[%clk 0:00:02.1]}
41... Qg1+ {[%clk 0:00:05]} 42. Ke2 {[%clk 0:00:01.5]} 42... Qe1+ {[%clk
0:00:03.3]} 43. Kxf3 {[%clk 0:00:01.5]} 43... Qe4+ {[%clk 0:00:04.2]} 44. Kg3
{[%clk 0:00:01.8]} 44... Qxe5+ {[%clk 0:00:04.7]} 45. f4 {[%clk 0:00:02]} 45...
Qe3+ {[%clk 0:00:04.2]} 46. Kg4 {[%clk 0:00:02.6]} 46... Qg1+ {[%clk 0:00:04]}
47. Kh3 {[%clk 0:00:02.9]} 47... Qh1+ {[%clk 0:00:03.9]} 48. Kg3 {[%clk
0:00:03.4]} 48... Qg1+ {[%clk 0:00:04.8]} 49. Kf3 {[%clk 0:00:03.2]} 49... Rc7
{[%clk 0:00:05.4]} 50. Rb8 {[%clk 0:00:02.6]} 50... Qh1+ {[%clk 0:00:05.2]} 51.
Kg3 {[%clk 0:00:02.4]} 51... Nc6 {[%clk 0:00:04.8]} 52. Qb6 {[%clk 0:00:02.1]}
52... Qg1+ {[%clk 0:00:05.5]} 53. Kf3 {[%clk 0:00:01.9]} 53... Kd7 {[%clk
0:00:05.9]} 54. Rg8 {[%clk 0:00:01.5]} 54... Qf1+ {[%clk 0:00:05.9]} 55. Kg3
{[%clk 0:00:01.4]} 55... Qg1+ {[%clk 0:00:05.8]} 56. Kf3 {[%clk 0:00:01.4]}
56... Qd1+ {[%clk 0:00:06.6]} 57. Kg3 {[%clk 0:00:01.6]} 57... Ne7 {[%clk
0:00:06.9]} 58. Rxg7 {[%clk 0:00:01.6]} 58... Qe1+ {[%clk 0:00:06.5]} 59. Kf3
{[%clk 0:00:01.8]} 59... Qd1+ {[%clk 0:00:06.2]} 60. Kg3 {[%clk 0:00:02.2]}
60... Kd8 {[%clk 0:00:02.6]} 61. Rxe7 {[%clk 0:00:01.8]} 61... Qe1+ {[%clk
0:00:01.3]} 62. Kf3 {[%clk 0:00:01.8]} 62... Qd1+ {[%clk 0:00:01.4]} 63. Kg3
{[%clk 0:00:02.3]} 63... Qg1+ {[%clk 0:00:01.8]} 64. Kf3 {[%clk 0:00:02.4]}
64... Qf1+ {[%clk 0:00:01.9]} 65. Kg3 {[%clk 0:00:02.6]} 65... Qg1+ {[%clk
0:00:02.4]} 66. Kh4 {[%clk 0:00:03]} 66... Qh2+ {[%clk 0:00:02.7]} 67. Kg4
{[%clk 0:00:03.4]} 67... Qg2+ {[%clk 0:00:03.4]} 68. Kh5 {[%clk 0:00:03.5]}
68... Qh3+ {[%clk 0:00:03]} 69. Kg6 {[%clk 0:00:03.8]} 69... Kxe7 {[%clk
0:00:01.5]} 70. Qxc7+ {[%clk 0:00:03.6]} 70... Ke8 {[%clk 0:00:02.4]} 71. Qc8+
{[%clk 0:00:03.6]} 71... Ke7 {[%clk 0:00:02.7]} 72. Qxc5+ {[%clk 0:00:04.2]}
72... Kd7 {[%clk 0:00:02.8]} 73. Qa7+ {[%clk 0:00:03.6]} 73... Kd6 {[%clk
0:00:02.9]} 74. Qb6+ {[%clk 0:00:03.7]} 74... Kd7 {[%clk 0:00:03.5]} 75. Qb5+
{[%clk 0:00:03.8]} 75... Kd6 {[%clk 0:00:04.2]} 76. Qb4+ {[%clk 0:00:04]} 76...
Kd7 {[%clk 0:00:04.8]} 77. Qd4 {[%clk 0:00:04.1]} 77... Qf5+ {[%clk 0:00:05.2]}
78. Kh6 {[%clk 0:00:04.3]} 78... Qh3+ {[%clk 0:00:04.7]} 79. Kg7 {[%clk
0:00:04.2]} 79... Qf5 {[%clk 0:00:04.5]} 80. g6 {[%clk 0:00:03.1]} 80... Ke7
{[%clk 0:00:02.7]} 81. Qc5+ {[%clk 0:00:02.8]} 81... Kd7 {[%clk 0:00:02.9]} 82.
Qa7+ {[%clk 0:00:03]} 82... Kd6 {[%clk 0:00:03.3]} 83. Qb6+ {[%clk 0:00:02.8]}
83... Kd7 {[%clk 0:00:03.6]} 84. Qb7+ {[%clk 0:00:03.4]} 84... Kd6 {[%clk
0:00:04.3]} 85. Qf7 {[%clk 0:00:03.6]} 85... Qxc2 {[%clk 0:00:04.5]} 86. Kg8
{[%clk 0:00:03.2]} 86... Qxc3 {[%clk 0:00:04.5]} 87. g7 {[%clk 0:00:03.8]} 87...
Qc8+ {[%clk 0:00:05.1]} 88. Qf8+ {[%clk 0:00:04]} 88... Kd7 {[%clk 0:00:05.5]}
89. Qxc8+ {[%clk 0:00:04]} 89... Kxc8 {[%clk 0:00:06.4]} 90. Kf8 {[%clk
0:00:04.7]} 90... Kd7 {[%clk 0:00:06.4]} 91. g8=Q {[%clk 0:00:05.4]} 91... Kd6
{[%clk 0:00:07.1]} 92. Qg7 {[%clk 0:00:05.6]} 92... d4 {[%clk 0:00:07.1]} 93.
Qxd4+ {[%clk 0:00:05.6]} 1-0

[Event "Late-Titled-Tuesday-Blitz-May-07-2024"]
[Site "Chess.com"]
[Date "2024.05.07"]
[Round "3"]
[White "ameetghasi100"]
[Black "Msb2"]
[Result "1/2-1/2"]
[WhiteElo "2806"]
[BlackElo "3044"]
[TimeControl "180+1"]
[EndTime "14:30:59 PDT"]
[Termination "Game drawn by 50-move rule"]

1. c4 {[%clk 0:03:00]} 1... e6 {[%clk 0:03:00.1]} 2. e3 {[%clk 0:03:00.1]} 2...
d5 {[%clk 0:03:00.7]} 3. Nf3 {[%clk 0:03:01]} 3... Nf6 {[%clk 0:03:01.3]} 4. Nc3
{[%clk 0:03:01.4]} 4... Bd6 {[%clk 0:03:02]} 5. b3 {[%clk 0:03:01.4]} 5... O-O
{[%clk 0:03:02.1]} 6. Bb2 {[%clk 0:03:01.9]} 6... c5 {[%clk 0:03:02.8]} 7. cxd5
{[%clk 0:03:01.2]} 7... exd5 {[%clk 0:03:03.7]} 8. d4 {[%clk 0:03:01.8]} 8...
Nc6 {[%clk 0:03:04.4]} 9. dxc5 {[%clk 0:03:02]} 9... Bxc5 {[%clk 0:03:05.3]} 10.
a3 {[%clk 0:02:59.1]} 10... a6 {[%clk 0:02:48.3]} 11. Be2 {[%clk 0:02:53.9]}
11... Bg4 {[%clk 0:02:48.4]} 12. O-O {[%clk 0:02:51.6]} 12... Qd6 {[%clk
0:02:47.4]} 13. h3 {[%clk 0:02:44.2]} 13... Bh5 {[%clk 0:02:46.6]} 14. Na4
{[%clk 0:02:34.9]} 14... Ba7 {[%clk 0:02:42.2]} 15. Bxf6 {[%clk 0:02:34.7]}
15... Qxf6 {[%clk 0:02:43.1]} 16. Qxd5 {[%clk 0:02:35]} 16... Bg6 {[%clk
0:02:43.3]} 17. Qg5 {[%clk 0:02:35]} 17... Qxg5 {[%clk 0:02:35.3]} 18. Nxg5
{[%clk 0:02:35.9]} 18... Rfd8 {[%clk 0:02:35.6]} 19. Nf3 {[%clk 0:02:32.2]}
19... Bc2 {[%clk 0:02:26.3]} 20. Bd1 {[%clk 0:02:32.1]} 20... Rxd1 {[%clk
0:02:21.5]} 21. Rfxd1 {[%clk 0:02:18.5]} 21... Bxb3 {[%clk 0:02:21.9]} 22. Nc3
{[%clk 0:01:56.3]} 22... Bxd1 {[%clk 0:02:21.3]} 23. Rxd1 {[%clk 0:01:57.2]}
23... Rd8 {[%clk 0:02:18]} 24. Rxd8+ {[%clk 0:01:52]} 24... Nxd8 {[%clk
0:02:18.9]} 25. a4 {[%clk 0:01:52.2]} 25... Kf8 {[%clk 0:02:16.6]} 26. Kf1
{[%clk 0:01:52.7]} 26... Ne6 {[%clk 0:02:08.7]} 27. Ke2 {[%clk 0:01:44.6]} 27...
Bb6 {[%clk 0:02:03.8]} 28. Ne5 {[%clk 0:01:30.1]} 28... Ba5 {[%clk 0:01:58.1]}
29. Nd5 {[%clk 0:01:29.9]} 29... Nc5 {[%clk 0:01:51.5]} 30. Nc4 {[%clk
0:01:29.7]} 30... Bd8 {[%clk 0:01:50.4]} 31. a5 {[%clk 0:01:27.6]} 31... Nb3
{[%clk 0:01:50.4]} 32. Kd3 {[%clk 0:01:12.9]} 32... Nxa5 {[%clk 0:01:50.1]} 33.
Nd6 {[%clk 0:01:13.4]} 33... b5 {[%clk 0:01:46.8]} 34. e4 {[%clk 0:01:13]} 34...
Nc6 {[%clk 0:01:35.4]} 35. f4 {[%clk 0:01:11.1]} 35... g6 {[%clk 0:01:35.7]} 36.
e5 {[%clk 0:01:06.9]} 36... Be7 {[%clk 0:01:16.6]} 37. Nc7 {[%clk 0:00:54.5]}
37... Nb8 {[%clk 0:00:54.9]} 38. Nb7 {[%clk 0:00:46.1]} 38... Bh4 {[%clk
0:00:37.9]} 39. Nc5 {[%clk 0:00:36.8]} 39... Bg3 {[%clk 0:00:38.4]} 40. Ke3
{[%clk 0:00:11.5]} 40... b4 {[%clk 0:00:38.7]} 41. Nb3 {[%clk 0:00:07.5]} 41...
Bh4 {[%clk 0:00:36.1]} 42. Nd5 {[%clk 0:00:07.6]} 42... Nc6 {[%clk 0:00:33.1]}
43. Kd3 {[%clk 0:00:04.9]} 43... a5 {[%clk 0:00:30.4]} 44. Nb6 {[%clk
0:00:05.2]} 44... Bd8 {[%clk 0:00:29.8]} 45. Na4 {[%clk 0:00:05.4]} 45... Bh4
{[%clk 0:00:15.3]} 46. Ke4 {[%clk 0:00:05.2]} 46... Ke8 {[%clk 0:00:15.7]} 47.
Kd5 {[%clk 0:00:05]} 47... Ne7+ {[%clk 0:00:13.2]} 48. Ke4 {[%clk 0:00:04.9]}
48... Nc6 {[%clk 0:00:04.4]} 49. g4 {[%clk 0:00:04.9]} 49... Nd8 {[%clk
0:00:05.3]} 50. f5 {[%clk 0:00:05]} 50... gxf5+ {[%clk 0:00:05.4]} 51. gxf5
{[%clk 0:00:05.9]} 51... Nc6 {[%clk 0:00:05.1]} 52. Kd5 {[%clk 0:00:06.5]} 52...
Ne7+ {[%clk 0:00:05]} 53. Ke4 {[%clk 0:00:06.8]} 53... Bg3 {[%clk 0:00:04.5]}
54. Nxa5 {[%clk 0:00:06.7]} 54... h5 {[%clk 0:00:05]} 55. Nc5 {[%clk 0:00:06.2]}
55... Nc8 {[%clk 0:00:04.5]} 56. Nd3 {[%clk 0:00:05.7]} 56... Nb6 {[%clk
0:00:02.6]} 57. Nxb4 {[%clk 0:00:06]} 57... Be1 {[%clk 0:00:02.9]} 58. Nac6
{[%clk 0:00:05.9]} 58... Nc4 {[%clk 0:00:03.5]} 59. Nd5 {[%clk 0:00:05.8]} 59...
Bg3 {[%clk 0:00:03.2]} 60. Nf6+ {[%clk 0:00:06.2]} 60... Kf8 {[%clk 0:00:03.2]}
61. Kd4 {[%clk 0:00:06.1]} 61... Nd2 {[%clk 0:00:02.1]} 62. Nxh5 {[%clk
0:00:06.3]} 62... Bh2 {[%clk 0:00:02.7]} 63. Kd5 {[%clk 0:00:05.8]} 63... Nf3
{[%clk 0:00:02.7]} 64. Ke4 {[%clk 0:00:05.8]} 64... Ng5+ {[%clk 0:00:03.2]} 65.
Kd5 {[%clk 0:00:06.1]} 65... Nxh3 {[%clk 0:00:03.7]} 66. e6 {[%clk 0:00:06.6]}
66... fxe6+ {[%clk 0:00:04]} 67. fxe6 {[%clk 0:00:07.5]} 67... Nf4+ {[%clk
0:00:02.5]} 68. Nxf4 {[%clk 0:00:07.7]} 68... Bxf4 {[%clk 0:00:03.4]} 69. Ke4
{[%clk 0:00:08.2]} 69... Bg5 {[%clk 0:00:03.7]} 70. Kf5 {[%clk 0:00:08.2]} 70...
Bh4 {[%clk 0:00:04.4]} 71. Ne5 {[%clk 0:00:09.1]} 71... Ke8 {[%clk 0:00:04.4]}
72. Ng6 {[%clk 0:00:09.3]} 72... Bd8 {[%clk 0:00:05.1]} 73. Ke5 {[%clk
0:00:09.8]} 73... Bg5 {[%clk 0:00:05.4]} 74. Kd6 {[%clk 0:00:10.7]} 74... Bd8
{[%clk 0:00:05.6]} 75. Kd5 {[%clk 0:00:11.1]} 75... Bf6 {[%clk 0:00:05.8]} 76.
Ke4 {[%clk 0:00:11.3]} 76... Bg5 {[%clk 0:00:06.1]} 77. Kf5 {[%clk 0:00:12.2]}
77... Bd8 {[%clk 0:00:06.7]} 78. Ne5 {[%clk 0:00:12.8]} 78... Bh4 {[%clk
0:00:07.1]} 79. Nc4 {[%clk 0:00:13.5]} 79... Ke7 {[%clk 0:00:06.9]} 80. Ne3
{[%clk 0:00:12.3]} 80... Ke8 {[%clk 0:00:07]} 81. Ke5 {[%clk 0:00:12.7]} 81...
Bg5 {[%clk 0:00:07.2]} 82. Nf5 {[%clk 0:00:13.6]} 82... Bd8 {[%clk 0:00:06]} 83.
Kd6 {[%clk 0:00:13.9]} 83... Bf6 {[%clk 0:00:06]} 84. Kd5 {[%clk 0:00:14.3]}
84... Bg5 {[%clk 0:00:05.9]} 85. Nd6+ {[%clk 0:00:15.2]} 85... Ke7 {[%clk
0:00:06]} 86. Ne4 {[%clk 0:00:16.1]} 86... Bh4 {[%clk 0:00:06.5]} 87. Nd6 {[%clk
0:00:16.2]} 87... Kf8 {[%clk 0:00:05.9]} 88. Nf5 {[%clk 0:00:17.1]} 88... Bg5
{[%clk 0:00:06.3]} 89. Kd6 {[%clk 0:00:18]} 89... Ke8 {[%clk 0:00:06.7]} 90.
Ng7+ {[%clk 0:00:18.4]} 90... Kf8 {[%clk 0:00:07.1]} 91. Nf5 {[%clk 0:00:19]}
91... Ke8 {[%clk 0:00:07.8]} 92. Ke5 {[%clk 0:00:19.6]} 92... Bd8 {[%clk
0:00:07.5]} 93. Nd6+ {[%clk 0:00:20.1]} 93... Ke7 {[%clk 0:00:08.2]} 94. Nf7
{[%clk 0:00:21]} 94... Bc7+ {[%clk 0:00:08.3]} 95. Kf5 {[%clk 0:00:21.8]} 95...
Ba5 {[%clk 0:00:09]} 96. Ne5 {[%clk 0:00:22.5]} 96... Ke8 {[%clk 0:00:09.1]} 97.
Nc6 {[%clk 0:00:23]} 97... Bc7 {[%clk 0:00:09.8]} 98. Kf6 {[%clk 0:00:23.9]}
98... Bd6 {[%clk 0:00:10.4]} 99. Nd4 {[%clk 0:00:24]} 99... Ba3 {[%clk
0:00:10.1]} 100. Nf5 {[%clk 0:00:24.9]} 100... Bb2+ {[%clk 0:00:10.7]} 101. Kg6
{[%clk 0:00:25.3]} 101... Ba3 {[%clk 0:00:10.9]} 102. Kg5 {[%clk 0:00:26]}
102... Bc1+ {[%clk 0:00:11.1]} 103. Kg4 {[%clk 0:00:26.2]} 103... Ba3 {[%clk
0:00:11.8]} 104. Kf3 {[%clk 0:00:27.1]} 104... Bb2 {[%clk 0:00:11.7]} 105. Ke4
{[%clk 0:00:28]} 105... Ba3 {[%clk 0:00:12.2]} 106. Kd5 {[%clk 0:00:28.9]}
106... Bb4 {[%clk 0:00:12.6]} 107. Ke5 {[%clk 0:00:29.8]} 107... Ba3 {[%clk
0:00:13.1]} 108. Kf6 {[%clk 0:00:30.7]} 108... Bb2+ {[%clk 0:00:13.7]} 109. Kg5
{[%clk 0:00:31.4]} 109... Ba3 {[%clk 0:00:14.3]} 110. Kf4 {[%clk 0:00:31.2]}
110... Bb4 {[%clk 0:00:14.8]} 111. Ke4 {[%clk 0:00:32.1]} 111... Ba3 {[%clk
0:00:15.4]} 112. Kd5 {[%clk 0:00:33]} 112... Bb4 {[%clk 0:00:15.4]} 113. Nd6+
{[%clk 0:00:33.9]} 113... Ke7 {[%clk 0:00:15.6]} 114. Nc8+ {[%clk 0:00:33.9]}
114... Ke8 {[%clk 0:00:15.7]} 115. Na7 {[%clk 0:00:34.8]} 115... Ba3 {[%clk
0:00:15.8]} 116. Nc6 {[%clk 0:00:35.3]} 116... Bf8 {[%clk 0:00:16.1]} 117. Ke5
{[%clk 0:00:34.9]} 117... Ba3 {[%clk 0:00:16.3]} 118. Kf6 {[%clk 0:00:35.5]}
118... Bb2+ {[%clk 0:00:16.5]} 1/2-1/2

[Event "Late-Titled-Tuesday-Blitz-May-07-2024"]
[Site "Chess.com"]
[Date "2024.05.07"]
[Round "4"]
[White "NM_Koval"]
[Black "duone"]
[Result "0-1"]
[WhiteElo "2238"]
[BlackElo "2435"]
[TimeControl "180+1"]
[EndTime "14:33:28 PDT"]
[Termination "duone won by resignation"]

1. d4 {[%clk 0:02:55]} 1... Nf6 {[%clk 0:02:58]} 2. Nc3 {[%clk 0:02:54.2]} 2...
d5 {[%clk 0:02:56.6]} 3. f3 {[%clk 0:02:54.4]} 3... e6 {[%clk 0:02:53.8]} 4. e4
{[%clk 0:02:54.3]} 4... c5 {[%clk 0:02:53]} 5. Bg5 {[%clk 0:02:52.4]} 5... cxd4
{[%clk 0:02:52.6]} 6. Qxd4 {[%clk 0:02:52.2]} 6... Nc6 {[%clk 0:02:53]} 7. Bb5
{[%clk 0:02:52.2]} 7... Be7 {[%clk 0:02:50.4]} 8. O-O-O {[%clk 0:02:48.6]} 8...
Bd7 {[%clk 0:02:49.3]} 9. Qd2 {[%clk 0:02:48.4]} 9... d4 {[%clk 0:02:41.6]} 10.
Bxc6 {[%clk 0:02:42.5]} 10... dxc3 {[%clk 0:02:33.3]} 11. Bxd7+ {[%clk
0:02:41.6]} 11... Nxd7 {[%clk 0:02:33.4]} 12. Qxd7+ {[%clk 0:02:22.5]} 12...
Qxd7 {[%clk 0:02:32.7]} 13. Rxd7 {[%clk 0:02:19.1]} 13... Bxg5+ {[%clk
0:02:32.6]} 0-1

[Event "Late-Titled-Tuesday-Blitz-May-07-2024"]
[Site "Chess.com"]
[Date "2024.05.07"]
[Round "4"]
[White "lilylg"]
[Black "Vincefm"]
[Result "0-1"]
[WhiteElo "2246"]
[BlackElo "2500"]
[TimeControl "180+1"]
[EndTime "14:33:41 PDT"]
[Termination "Vincefm won by resignation"]

1. d4 {[%clk 0:03:00.9]} 1... Nf6 {[%clk 0:02:59.1]} 2. c4 {[%clk 0:02:59.6]}
2... c5 {[%clk 0:02:59.1]} 3. d5 {[%clk 0:02:59.7]} 3... b5 {[%clk 0:02:59.4]}
4. cxb5 {[%clk 0:02:59.1]} 4... a6 {[%clk 0:02:59.9]} 5. bxa6 {[%clk 0:02:59.5]}
5... g6 {[%clk 0:03:00]} 6. Nc3 {[%clk 0:02:59.4]} 6... Bg7 {[%clk 0:02:59.9]}
7. e4 {[%clk 0:02:59.7]} 7... O-O {[%clk 0:03:00.2]} 8. Nf3 {[%clk 0:02:52.9]}
8... Qa5 {[%clk 0:03:00.2]} 9. Bd2 {[%clk 0:02:49.3]} 9... Bxa6 {[%clk
0:03:00.2]} 10. Bb5 {[%clk 0:02:49.3]} 10... Bxb5 {[%clk 0:02:50.5]} 11. a4
{[%clk 0:02:36.2]} 11... Ba6 {[%clk 0:02:45.5]} 12. e5 {[%clk 0:02:36.3]} 12...
Ne8 {[%clk 0:02:43.6]} 13. Ne4 {[%clk 0:02:23.4]} 13... Qc7 {[%clk 0:02:38.4]}
14. Bc3 {[%clk 0:02:23.2]} 14... d6 {[%clk 0:02:37]} 0-1